Cogmind - Beta 16 @@@ ROGUE MODE // 2025.12.10 @ 19:57:55 Player: EuleBlut Result: Destroyed by P-60 Hacker with Shock Rifle Performance ------------- Evolutions (3) 1500 Regions Visited (6) 1200 Robots Destroyed (30) 150 Value Destroyed (1148) 1148 Prototype IDs (0) 0 Alien Tech Used (0) 0 Bonus (0) 0 TOTAL SCORE: 3998 Bonus ------- None Cogmind --------- Core Integrity 0/700 Matter 293/300 Energy 300/300 System Corruption 13% Temperature Cool (9) Movement Core (100) Ox1 Location -7/Factory Parts ------- > --- POWER (1) -------- (None) > --- PROPULSION (4) --- (None) > --- UTILITY (6) ------ Improved Heat Sink Compact Battery > --- WEAPON (2) ------- Particle Gun > --- INVENTORY (5) ---- Light Ion Engine Improved Ion Engine Improved Heat Sink Improved Heat Sink Compact Battery (200) Peak State ------------ > --- POWER ------------ Improved Deuterium Engine > --- PROPULSION ------- Compact Wheel Compact Wheel > --- UTILITY ---------- Improved Heat Sink Large Storage Unit Compact Battery Advanced ECM Suite Hardened Light Armor Plating > --- WEAPON ----------- Heavy Ion Cannon Mace > --- INVENTORY -------- Light Ion Engine Improved Ion Engine Light Nuclear Core Light Treads Power Amplifier Improved Heat Sink Improved Heat Sink Large Storage Unit Compact Battery Improved Light Armor Plating Particle Gun Particle Gun [Rating: 27] Favorites ----------- Power Light Nuclear Core Engine Ion Engine Power Core Light Nuclear Core Propulsion Light Treads Treads Light Treads Wheel Compact Wheel Utility Small Storage Unit Device Trap Scanner Storage Small Storage Unit Protection Utility Shielding Weapon Light Assault Rifle Energy Gun Particle Gun Energy Cannon Heavy Ion Cannon Ballistic Gun Light Assault Rifle Ballistic Cannon Light Cannon Impact Weapon Mace Build | -11 -10 -10 -10 -9 -8 -7 ------- Run | Yrd Mat Min Exi Min Mat Fac Slots Evolved 6 | . . . . . 4 2 Power . | . . . . . . . Propulsion 2 | . . . . . . 2 Utility 4 | . . . . . 4 . Weapon . | . . . . . . . Parts Attached 48 | 6 2 . . . 22 18 Power 8 | 2 . . . . 2 4 Engine 5 | 2 . . . . 1 2 Core 3 | . . . . . 1 2 Reactor . | . . . . . . . Propulsion 11 | 2 . . . . 5 4 Treads 6 | 2 . . . . 3 1 Leg . | . . . . . . . Wheel 5 | . . . . . 2 3 Hover . | . . . . . . . Flight . | . . . . . . . Utility 18 | 1 1 . . . 10 6 Device 5 | . . . . . 3 2 Storage 4 | 1 . . . . 2 1 Processor . | . . . . . . . Hackware . | . . . . . . . Protection 9 | . 1 . . . 5 3 Artifact . | . . . . . . . Weapon 11 | 1 1 . . . 5 4 Energy Gun 2 | . . . . . . 2 Energy Cannon 1 | . . . . . . 1 Ballistic Gun 6 | 1 1 . . . 4 . Ballistic Cannon 1 | . . . . . 1 . Launcher . | . . . . . . . Special Weapon . | . . . . . . . Impact Weapon 1 | . . . . . . 1 Slashing Weapon . | . . . . . . . Piercing Weapon . | . . . . . . . Special Melee Weapon . | . . . . . . . Unidentified Prototypes . | . . . . . . . Parts Lost 40 | . . . . . 17 23 Power 7 | . . . . . 2 5 Propulsion 10 | . . . . . 4 6 Utility 14 | . . . . . 6 8 Weapon 9 | . . . . . 5 4 Highest Loss Streak 11 | . . . . . 5 11 To Critical Strikes . | . . . . . . . Average Backups 5 | 1 4 8 8 7 5 7 Power 1 | . 1 1 1 . . 3 Propulsion 1 | . 2 2 2 2 1 . Utility 1 | . . 3 3 3 1 3 Weapon 1 | . . 2 2 2 1 . Tool/Special . | . . . . . . . Unused Backups 6 | . . . . . . 6 Power 2 | . . . . . . 2 Propulsion . | . . . . . . . Utility 4 | . . . . . . 4 Weapon . | . . . . . . . Tool/Special . | . . . . . . . Average Slot Usage (%) 83 | . 83 85 85 100 87 75 Engine 4 | . 11 . . 14 5 2 Core 1 | . . . . . 3 3 Treads 17 | . 28 28 28 28 12 8 Wheel 3 | . . . . . 3 9 Device 6 | . . . . . 9 13 Storage 15 | . 14 14 14 14 17 12 Protection 12 | . 2 14 14 14 18 10 Ballistic Gun 16 | . 25 28 28 28 12 3 Ballistic Cannon 2 | . . . . . 4 1 Peak Build Rating 27 | 5 7 6 6 7 18 27 Average Rating 11 | 2 5 6 6 7 13 21 On Entrance 6 | . 5 6 6 6 7 17 Avg Prop Armor Cover (%) 11 | . . . . . 2 13 Naked Turns . | . . . . . . . Heaviest Build 50 | 11 14 9 9 12 45 50 Greatest Support 40 | 40 40 40 40 40 40 40 Greatest Overweight (x) 13 | . . . . . 13 3 Average Overweight (x) . | . . . . . . 1 Largest Inventory Capacity 15 | 8 8 8 8 8 15 15 Average Capacity 10 | 6 8 8 8 8 11 14 Most Carried 13 | 4 8 8 8 7 9 13 Average Carried 5 | 1 4 8 8 7 5 7 Final Capacity 15 | 8 8 8 8 8 15 5 Final Carried 8 | 3 8 8 8 7 6 5 Class Distribution -------------------- 61% | Mutant 38% | Scavenger-Mutant Dominant Class ---------------- Mutant | -10/Materials Mutant | -10/Mines Mutant | -10/Exiles Mutant | -9/Mines Scavenger-Mutant | -8/Materials Scavenger-Mutant | -7/Factory Resources | -11 -10 -10 -10 -9 -8 -7 ----------- Run | Yrd Mat Min Exi Min Mat Fac Matter Collected 1093 | 231 63 142 . 10 542 105 Remotely . | . . . . . . . Salvage Created 1193 | . 71 92 . . 674 356 Parts 64 | . 4 4 . . 42 14 Haulers Intercepted . | . . . . . . . Recyclers Shooed 1 | . . . . . 1 . Parts Field Recycled . | . . . . . . . Retrieved Matter . | . . . . . . . Parts Self-Destructed . | . . . . . . . Prevented . | . . . . . . . Parts Restored . | . . . . . . . Kills | -11 -10 -10 -10 -9 -8 -7 ------- Run | Yrd Mat Min Exi Min Mat Fac Combat Hostiles Destroyed 27 | . 3 2 . . 15 7 Guns 18 | . 3 2 . . 10 3 Cannons 8 | . . . . . 5 3 Classes Destroyed 8 | . 2 1 . . 4 1 Recycler 1 | . . . . . 1 . Watcher 2 | . 1 . . . 1 . Swarmer 6 | . 3 . . . 3 . Grunt 14 | . . 2 . . 6 6 Brawler 2 | . . . . . 2 . Duelist 1 | . . . . . 1 . Protector 1 | . . . . . . 1 Sentry 3 | . . . . . 3 . Best Kill Streak 5 | . 3 2 . . 5 3 Combat Bots Only 4 | . 3 2 . . 4 3 Max Kills in Single Turn 1 | . 1 1 . . 1 1 Gunslinging . | . . . . . . . Exploded . | . . . . . . . Melee . | . . . . . . . Uniques/NPCs Destroyed . | . . . . . . . Combat | -11 -10 -10 -10 -9 -8 -7 -------- Run | Yrd Mat Min Exi Min Mat Fac Hostile Shots Fired 399 | . 16 17 . . 192 174 Missed 101 | . 4 3 . . 61 33 Hits 298 | . 12 14 . . 131 141 Melee 33 | . . . . . 7 26 Projectile 265 | . 12 14 . . 124 115 Critical Strikes 16 | . . 1 . . 7 8 Actively Blocked 3 | . . 1 . . 2 . Damage Taken 4962 | . 100 180 . . 1872 2810 Core 1064 | . 7 51 . . 305 701 Absorbed by Shields . | . . . . . . . Redirected to Shielding 134 | . . 5 . . 113 16 Core Remaining (%) 73 | 100 . . . 76 44 . Volleys Fired 147 | . 6 8 . . 83 50 Largest 2 | . 2 2 . . 2 2 Hottest 88 | . 40 40 . . 53 88 Shots Fired 240 | . 12 16 . . 146 66 Gun 174 | . 12 16 . . 115 31 Cannon 66 | . . . . . 31 35 Launcher . | . . . . . . . Special . | . . . . . . . Kinetic 198 | . 12 16 . . 146 24 Thermal 42 | . . . . . . 42 Explosive . | . . . . . . . Electromagnetic . | . . . . . . . Robot Hit Streak 13 | . 2 3 . . 13 11 Robot Miss Streak 8 | . 6 1 . . 8 2 Penetration Max . | . . . . . . . Secondary Targets 3 | . 1 1 . . 1 . Max Gunslinging Chain 1 | . 1 1 . . 1 . Shots Hit Robots 160 | . 5 11 . . 93 51 Core Hits 77 | . 6 6 . . 41 24 Critical Kills . | . . . . . . . Critical Parts Destroyed 2 | . . . . . . 2 Critical Strikes 3 | . . . . . . 3 Burn 1 | . . . . . . 1 Destroy 1 | . . . . . . 1 Smash 1 | . . . . . . 1 Melee Attacks 4 | . . . . . . 4 Impact 4 | . . . . . . 4 Slashing . | . . . . . . . Piercing . | . . . . . . . Sneak Attacks . | . . . . . . . Combat Hostiles . | . . . . . . . Follow-up Attacks . | . . . . . . . Damage Inflicted 2582 | . 82 131 . . 1220 1149 Guns 1481 | . 82 131 . . 872 396 Cannons 1022 | . . . . . 347 675 Explosions . | . . . . . . . Melee 78 | . . . . . . 78 Ramming 1 | . . . . . 1 . Kinetic 1735 | . 82 131 . . 1219 303 Thermal 768 | . . . . . . 768 Explosive . | . . . . . . . Electromagnetic . | . . . . . . . Impact 78 | . . . . . . 78 Slashing . | . . . . . . . Piercing . | . . . . . . . Highest Corruption 13 | . . . . . . 13 Average Corruption 7 | . . . . . . 7 Corruption Purged . | . . . . . . . Corruption Blocked . | . . . . . . . Effects 9 | . . . . . . 9 Message Errors 1 | . . . . . . 1 Matter Fused 2 | . . . . . . 2 Heat Flow Errors 2 | . . . . . . 2 Energy Discharges 1 | . . . . . . 1 Data Loss (major) 1 | . . . . . . 1 Alerts 1 | . . . . . . 1 Weapon Failures 1 | . . . . . . 1 Overload Shots . | . . . . . . . Overflow Damage 37 | . . . . . . 37 Projectiles . | . . . . . . . Explosions . | . . . . . . . Melee 37 | . . . . . . 37 Knockbacks 4 | . . . . . 3 1 Impact 1 | . . . . . . 1 Kinetic 3 | . . . . . 3 . Secondary . | . . . . . . . Self-Inflicted Damage . | . . . . . . . Shots . | . . . . . . . Rammed 2 | . . . . . 2 . Targets Rammed 2 | . . . . . 2 . Kicked . | . . . . . . . Crushed . | . . . . . . . Highest Temperature 111 | . . 10 . . 12 111 Average Temperature 10 | . . 3 . . 5 14 Received Heat Transfer 1755 | . . 99 . . 702 954 Siege Activations . | . . . . . . . Martial Activations . | . . . . . . . Shielding Activations . | . . . . . . . Robots Disrupted . | . . . . . . . Combat Hostiles . | . . . . . . . Robots Corrupted 1 | . . . . . . 1 Combat Hostiles 1 | . . . . . . 1 Parts Fried 2 | . . . . . . 2 Impact Corruptions 1 | . . . . . . 1 Robots Melted . | . . . . . . . Combat Hostiles . | . . . . . . . Parts Melted . | . . . . . . . Heat Transferred 923 | . . . . . . 923 Parts Sabotaged . | . . . . . . . Parts Stolen . | . . . . . . . Parts Stripped . | . . . . . . . Power Chain Reactions . | . . . . . . . Alert | -11 -10 -10 -10 -9 -8 -7 ------- Run | Yrd Mat Min Exi Min Mat Fac Maximum Alert Level . | . . . . . . . Low Security (%) 100 | 100 100 100 . 100 100 100 Level 1 . | . . . . . . . Level 2 . | . . . . . . . Level 3 . | . . . . . . . Level 4 . | . . . . . . . Level 5 . | . . . . . . . High Security . | . . . . . . . Max Security . | . . . . . . . Peak Influence 191 | . 70 50 . . 135 191 Initial 50 | . . . . . . 50 Average 32 | . 13 10 . . 34 70 Influence Increases 899 | . 77 50 . . 462 310 Destroy 0b10 Robot/C 520 | . 60 40 . . 300 120 Destroy 0b10 Robot/NC 20 | . 5 . . . 10 5 Destroy Leader 114 | . 12 10 . . 62 30 Successful Hack 4 | . . . . . . 4 Anti-Garrison Action 150 | . . . . . . 150 Destroy Structure 1 | . . . . . . 1 Lose Combat Pursuer 90 | . . . . . 90 . Influence Decreases 899 | . 77 50 . . 350 422 Entered New Map 62 | . . . . . . 62 Time Decay 581 | . 77 50 . . 248 206 Lost Part 256 | . . . . . 102 154 Squads Dispatched 5 | . . . . . 1 4 Investigation . | . . . . . . . Extermination 1 | . . . . . . 1 Reinforcement 2 | . . . . . 1 1 Assault 2 | . . . . . . 2 Garrison . | . . . . . . . Intercept . | . . . . . . . Searches Triggered . | . . . . . . . Construction Impeded . | . . . . . . . Haulers Reinforced . | . . . . . . . Active Scanning Responses . | . . . . . . . Cargo Convoy Interrupts . | . . . . . . . Stealth | -11 -10 -10 -10 -9 -8 -7 --------- Run | Yrd Mat Min Exi Min Mat Fac Distress Signals . | . . . . . . . Communications Jammed . | . . . . . . . Distress Signals . | . . . . . . . Times Spotted 56 | . 5 2 . . 31 18 Peak Tracking Total 6 | . 4 2 . . 6 5 Tactical Retreats 4 | . . . . . 3 1 ECM-based Alert Blocks 1 | . . . . . . 1 Traps | -11 -10 -10 -10 -9 -8 -7 ------- Run | Yrd Mat Min Exi Min Mat Fac Traps Triggered 1 | . 1 . . . . . Indirectly . | . . . . . . . Trap Hack Attempts . | . . . . . . . Triggered . | . . . . . . . Disarmed . | . . . . . . . Reprogrammed . | . . . . . . . Reused . | . . . . . . . Traps Extracted . | . . . . . . . Installed . | . . . . . . . Triggered . | . . . . . . . Machines | -11 -10 -10 -10 -9 -8 -7 ---------- Run | Yrd Mat Min Exi Min Mat Fac Machines Disabled 1 | . . . . . . 1 Max in Single Turn 1 | . . . . . . 1 Garrison Access 1 | . . . . . . 1 Machines Repaired . | . . . . . . . Machines Dismantled . | . . . . . . . Machines Sabotaged . | . . . . . . . Overloaded Fab Kills . | . . . . . . . Hacking | -11 -10 -10 -10 -9 -8 -7 --------- Run | Yrd Mat Min Exi Min Mat Fac Machines Accessed 2 | . . . . . . 2 Terminals 2 | . . . . . . 2 Fabricators . | . . . . . . . Repair Stations . | . . . . . . . Recycling Units . | . . . . . . . Scanalyzers . | . . . . . . . Garrison Access . | . . . . . . . Total Hacks 4 | . . . . . . 4 Successful 2 | . . . . . . 2 Failed 2 | . . . . . . 2 Catastrophic 1 | . . . . . . 1 Database Lockouts . | . . . . . . . Manual 1 | . . . . . . 1 Terminals 4 | . . . . . . 4 Fabricators . | . . . . . . . Repair Stations . | . . . . . . . Recycling Units . | . . . . . . . Scanalyzers . | . . . . . . . Garrison Access . | . . . . . . . Terminal Hacks 2 | . . . . . . 2 Alert Level 1 | . . . . . . 1 Dispatch Records 1 | . . . . . . 1 Fabricator Hacks . | . . . . . . . Repair Station Hacks . | . . . . . . . Recycling Unit Hacks . | . . . . . . . Scanalyzer . | . . . . . . . Garrison Access Hacks . | . . . . . . . Unauthorized Hacks . | . . . . . . . Terminals . | . . . . . . . Fabricators . | . . . . . . . Repair Stations . | . . . . . . . Recycling Units . | . . . . . . . Scanalyzers . | . . . . . . . Garrison Access . | . . . . . . . Data Cores Recovered . | . . . . . . . Used . | . . . . . . . Hacking Detections 1 | . . . . . . 1 Full Trace Events . | . . . . . . . Feedback Events . | . . . . . . . Feedback Blocked . | . . . . . . . Robot Schematics Acquired . | . . . . . . . Robots Built . | . . . . . . . Authchips . | . . . . . . . Time . | . . . . . . . Total Robot Build Rating . | . . . . . . . Part Schematics Acquired . | . . . . . . . Parts Built . | . . . . . . . Authchips . | . . . . . . . Time . | . . . . . . . Total Part Build Rating . | . . . . . . . Part Studies Acquired . | . . . . . . . Parts Repaired . | . . . . . . . Time . | . . . . . . . Parts Recycled . | . . . . . . . Recycled Matter . | . . . . . . . Retrieved Matter . | . . . . . . . Retrieved Components . | . . . . . . . Parts Scanalyzed . | . . . . . . . Part Schematics Acquired . | . . . . . . . Parts Damaged . | . . . . . . . Bothacking | -11 -10 -10 -10 -9 -8 -7 ------------ Run | Yrd Mat Min Exi Min Mat Fac Used RIF Installer . | . . . . . . . Robots Hacked . | . . . . . . . Non-combat . | . . . . . . . Combat . | . . . . . . . Robot Hacks Applied . | . . . . . . . Relay Couplers Released 2 | . . . . . . 2 Machine Destruction 2 | . . . . . . 2 Fabnet Peak Effective % . | . . . . . . . Robots Rewired . | . . . . . . . Allies Hacked . | . . . . . . . Hacks Repelled . | . . . . . . . Allies | -11 -10 -10 -10 -9 -8 -7 -------- Run | Yrd Mat Min Exi Min Mat Fac Total Allies . | . . . . . . . Largest Group . | . . . . . . . Highest-Rated Group . | . . . . . . . Highest-Rated Ally . | . . . . . . . Total Orders . | . . . . . . . Ally Attacks . | . . . . . . . Total Damage . | . . . . . . . Kills . | . . . . . . . Allies Corrupted . | . . . . . . . Allies Melted . | . . . . . . . Intel | -11 -10 -10 -10 -9 -8 -7 ------- Run | Yrd Mat Min Exi Min Mat Fac Active Infowar (turns) 960 | . . . . . 663 297 Traps 901 | . . . . . 663 238 ECM 59 | . . . . . . 59 Robot Analysis Total . | . . . . . . . Derelict Logs Recovered . | . . . . . . . Drone Launches . | . . . . . . . Drone Recoveries . | . . . . . . . Exploration | -11 -10 -10 -10 -9 -8 -7 ------------- Run | Yrd Mat Min Exi Min Mat Fac Turns Passed 2396 | 152 393 259 218 22 886 466 Spaces Moved 1114 | 38 229 148 136 14 384 165 Core 3 | 2 . . . . 1 . Treads 810 | 36 229 148 136 14 232 15 Legs . | . . . . . . . Wheels 301 | . . . . . 151 150 Hover . | . . . . . . . Flight . | . . . . . . . Fastest Speed 50 | 50 160 160 160 160 115 115 Average Speed 153 | 154 160 160 160 160 153 129 Slowest Speed 700 | 160 160 160 160 160 700 240 Overloaded Moves . | . . . . . . . Propulsion Burnouts . | . . . . . . . Robots Hopped . | . . . . . . . Potential Cave-ins . | . . . . . . . Cave-ins Triggered . | . . . . . . . Exploration Rate (%) 23 | 7 42 26 50 13 27 2 Regions Visited 6 Branch Regions 3 Pre-discovered Areas . | . . . . . . . Known Exits Taken . | . . . . . . . Unknown Exits Taken 6 | 1 1 1 1 1 1 . Scrap Searched 2 | . . 1 . 1 . . Spaces Dug . | . . . . . . . Terrain Destroyed 1 | . . . . . . 1 Melee . | . . . . . . . Projectile 1 | . . . . . . 1 AOE . | . . . . . . . Terrain Rammed . | . . . . . . . Walls Destroyed . | . . . . . . . Machines Disabled . | . . . . . . . Actions | -11 -10 -10 -10 -9 -8 -7 --------- Run | Yrd Mat Min Exi Min Mat Fac Total 1568 | 131 245 156 137 14 542 343 Wait 195 | 80 2 1 . . 24 88 Move 1108 | 37 228 147 135 13 383 165 Hop . | . . . . . . . Pick Up 54 | 8 7 . . . 21 18 Fast Attach . | . . . . . . . Attach 49 | 5 2 . . 1 23 18 Detach 2 | . . . . . 2 . Swap 3 | 1 . . . . 2 . Drop 2 | . . . . . 2 . Fire 147 | . 6 8 . . 83 50 Melee 4 | . . . . . . 4 Ram . | . . . . . . . Kick . | . . . . . . . Crush 2 | . . . . . 2 . Escape Stasis . | . . . . . . . Rewire 2 | . . . 2 . . . Trap . | . . . . . . . Miscellaneous . | . . . . . . . Route ------- -11/Scrapyard -10/Materials -10/Mines -10/Exiles -9/Mines -8/Materials -7/Factory History --------- Turn | Location | Event 122 | -11/Scrapyard | Discovered new exit (range 15) 153 | -11/Scrapyard | Entered Materials 318 | -10/Materials | Build established: Mutant 478 | -10/Materials | Discovered new exit (range 9) 546 | -10/Materials | Entered Mines 775 | -10/Mines | Assembled infested the area 796 | -10/Mines | Deemed a non-threat by the Exiles lab entrance 798 | -10/Mines | Discovered new exit (range 5) 805 | -10/Mines | Entered Exiles 844 | -10/Exiles | Met 8R-AWN 873 | -10/Exiles | Met EX-HEX 948 | -10/Exiles | Met EX-DEC 1006 | -10/Exiles | Discovered new exit (range 14) 1023 | -10/Exiles | Entered Mines 1026 | -9/Mines | Discovered new exit (range 13) 1045 | -9/Mines | Entered Materials 1045 | -8/Materials | Evolved 4 slots: Utility x4 1169 | -8/Materials | Lost 3 parts (1p1u1w) 1659 | -8/Materials | Core integrity fell below 50% 1685 | -8/Materials | Lost 5 parts (1p1n1u2w) 1918 | -8/Materials | Discovered new exit (range 9) 1931 | -8/Materials | Entered Factory 1931 | -7/Factory | Evolved 2 slots: Propulsion x2 1983 | -7/Factory | Build established: Scavenger-Mutant 2083 | -7/Factory | Lost 3 parts (1p1n1w) 2232 | -7/Factory | Lost 9 parts (2p2n4u1w) 2358 | -7/Factory | Core integrity fell below 50% 2369 | -7/Factory | System corruption reached 10% 2381 | -7/Factory | Core integrity fell below 20% 2397 | -7/Factory | Destroyed by P-60 Hacker with Shock Rifle Last Messages --------------- Imp. Deuterium Engine destroyed. B-48 Gladiator heat damages Rnf. Deuterium Engine. L-41 Fighter knocked back. Com. Wheel destroyed. Hrd. Light Armor Plating destroyed. Critical hit (Burn: +37). Acquired 10 matter. Acquired 3 matter. Power Amplifier destroyed. Lgt. Nuclear Core destroyed. System corrupted: Heat flow error (+118). Imp. Light Armor Plating severed. System corrupted: Particle Gun failed to cycle. B-48 Gladiator heat damages Mace. Lgt. Treads destroyed. P-60 Hacker resets L-41 Fighter, system corruption cleaned. Mace severed. Lrg. Storage Unit destroyed. Map ----- +----------------------------------------------------+ | ?????????????????????????????????? | | ?????????????????????????????????? | | ?????????????????????????????????? | | ?????????????????????????????????? | | ?????????????????????????????????? | | ?????????????????????????????????? | | ?????????????????????????????????? | | ?????????????????????????????????? | | ?????????????????????????????????? | | ?????????????????????????????????? | | ?????????????????????????????????? | | ?????????????????????????????????? | | ?????????????????????????????????? | | ?????????????????????????????????? | | ???????????? #??????????????????? | | ???????????? ##?????????????????? | | ??????????? #?????????????????? | | ??????????? #?????????????????? | | ??????????? +?????????????????? | | ???????????# #?????????????????? | | ???????????# #?????????????????? | | ???????????# #?????????????????? | | ???????????# #?????????????????? | | ???????????# #?????????????????? | | ############ #?????????????????? | | # = =/@## ##????????? ??????? | | # %!l%# #????? " "?????? | | # p g[# ### G?? ?? | | # """ """%+ T ! "?? ?? | | # """ """ # ####???? !^ ? #?? | | # """ """ # #??????? """ #?? | | # ### ###??????? """ #?? | | # #?# #???????? """ #?? | | ###########?# #???????? #?? | | ????????????# #???????? #?? | | ????????????#+#########+## #?? | | ????????????# =% # #?? | | ????????????# "" """ % # #?? | | ????????????# """ """ # % #?? | | ????????????# "T """ # #?? | | ????????????# """ # ### | | ????????????# "" """ + # | | ????????????# """ # # | | ????????????# """ # # | | ????????????# # # | | ????????????# # # | | ????????????# # # | | ????????????# + + | | ????????????############## # | | ?????????????????????????# # | +----------------------------------------------------+ Best States ------------- Heat Dissipation 48 Energy Generation 16 Energy Capacity 490 Matter Stores 400 Matter Capacity 400 Sight Range 16 Terrain Scan Density 10 ECM Strength 2 Armor Coverage 225 Core Shielding 20 Propulsion Shielding 33 Utility Shielding 33 Evasion (%) 40 Recoil Reduction 2 Item Schematics ----------------- None Robot Schematics ------------------ None Fabricated ------------ Nothing Repaired ---------- Nothing Studied --------- None Alien Tech Used ----------------- None Achievements -------------- Heavy Suspicion Challenges ------------ None Game ------ Seed SiegeFrostRefractor Manual? 0 Play Time 00:27:58 Cumulative 5.3 hours Start 2025.12.10 @ 19:31:38 End 2025.12.10 @ 19:57:55 Sessions 1 Manual Loads 0 Difficulty Rogue Special Mode None Game No. 15 Rogue 14 Adventurer 0 Explorer 1 Win Type - Total 0 Types 0/0/0/0/0/0/0/0/0/0 Lore% 8 Gallery% 9 Achievement% 9 Wizard Run 0 Options --------- Layout 1 ASCII 0 Keyboard 0 Movement Mouse Keybinds 0 Fullscreen 2 Font 24/Smallcaps Map View 50x35 Zoom Use 12% Tactical HUD 0 Map Filters NONE Filters NONE Steam 1 RUN: 7323f9cd-1f47-4a2c-9e5c-f0b35b732001